Cogmind - Beta 12 *** ADVENTURER MODE // 2023.09.16 @ 11:47:46 Player: Daemos Result: Destroyed by Y-54 Guardian with Flak Gun Performance ------------- Evolutions (3) 1500 Regions Visited (8) 1600 Robots Destroyed (260) 1300 Value Destroyed (8528) 8528 Prototype IDs (24) 480 Alien Tech Used (0) 0 Bonus (149) 149 TOTAL SCORE: 13557 Bonus ------- High Alert Combat Kills 39 Follower Combat Kills 110 Cogmind --------- Core Integrity 0/700 Matter 300/300 Energy 217/550 System Corruption 32% Temperature Cool (27) Movement Treading (160) Location -7/Factory Parts ------- > --- POWER (2) -------- Antimatter Reactor Antimatter Reactor > --- PROPULSION (3) --- Light Treads Heavy Treads > --- UTILITY (6) ------ Target Analyzer Damper Plating > --- WEAPON (2) ------- Great Axe (fused) > --- INVENTORY (5) ---- Heavy Treads Improved Heat Sink Hardened Heavy Armor Plating Peak State ------------ > --- POWER ------------ Cooled Deuterium Engine Cooled Deuterium Engine > --- PROPULSION ------- Improved Titanium Leg Improved Titanium Leg Improved Titanium Leg > --- UTILITY ---------- Improved Cooling System Medium Storage Unit Active Sensor Suite Advanced Targeting Computer > --- WEAPON ----------- Heavy Ion Cannon Heavy Ion Cannon > --- INVENTORY -------- Deuterium Engine Improved Titanium Leg Improved Titanium Leg Improved Titanium Leg Weapon Cycler Improved EM Pulse Cannon Improved EM Pulse Cannon Heavy Ion Cannon Heavy Ion Cannon Katana [Rating: 68] Favorites ----------- Power Cooled Ion Engine Engine Cooled Ion Engine Power Core Light Nuclear Core Reactor Antimatter Reactor Propulsion Improved Titanium Leg Treads Light Treads Leg Improved Titanium Leg Wheel Armored Wheel Hover Unit Aerolev Unit Flight Unit Improved Flight Unit Utility Medium Storage Unit Device Experimental Sensor Array Storage Medium Storage Unit Processor Signal Interpreter Protection Improved Light Armor Plating Weapon Heavy Ion Cannon Energy Gun Shock Rifle Energy Cannon Heavy Ion Cannon Ballistic Gun Heavy Assault Rifle Ballistic Cannon Heavy Assault Cannon Launcher Heavy Missile Launcher Special Weapon Mining Laser Impact Weapon Mace Slashing Weapon Great Axe Special Melee Weapon Datajack Build | -11 -10 -10 -9 -9 -8 -7 -7 -7 ------- Run | Jun Mat Min Mat Sto Mat Fac Was Fac Slots Evolved 6 | . . . 2 . 2 2 . . Power 1 | . . . . . 1 . . . Propulsion 1 | . . . . . . 1 . . Utility 4 | . . . 2 . 1 1 . . Weapon . | . . . . . . . . . Parts Attached 222 | 7 15 14 22 44 50 47 16 7 Power 27 | 1 2 1 2 1 7 7 4 2 Engine 16 | 1 2 1 2 1 4 5 . . Core 5 | . . . . . 3 2 . . Reactor 6 | . . . . . . . 4 2 Propulsion 43 | 2 7 9 5 3 9 5 2 1 Treads 15 | 2 5 . . . 6 . 1 1 Leg 12 | . . 4 . . 2 5 1 . Wheel 14 | . 2 5 5 2 . . . . Hover 1 | . . . . . 1 . . . Flight 1 | . . . . 1 . . . . Utility 54 | 1 2 1 5 5 16 14 8 2 Device 25 | . . 1 1 1 6 11 4 1 Storage 5 | 1 1 . 1 . 1 1 . . Processor 9 | . 1 . 1 . 4 2 . 1 Hackware . | . . . . . . . . . Protection 15 | . . . 2 4 5 . 4 . Artifact . | . . . . . . . . . Weapon 98 | 3 4 3 10 35 18 21 2 2 Energy Gun 19 | . 1 1 7 6 3 . . 1 Energy Cannon 27 | . . . . 4 11 11 1 . Ballistic Gun 27 | 3 3 1 3 13 3 1 . . Ballistic Cannon 2 | . . . . . . 2 . . Launcher 4 | . . . . 2 . 2 . . Special Weapon 3 | . . 1 . 2 . . . . Impact Weapon 6 | . . . . 5 . . 1 . Slashing Weapon 9 | . . . . 3 1 4 . 1 Piercing Weapon . | . . . . . . . . . Special Melee Weapon 1 | . . . . . . 1 . . Unidentified Prototypes 16 | . 1 1 1 3 6 4 . . Parts Lost 35 | . 2 5 6 2 1 5 12 2 Power 7 | . . 1 1 1 . 1 3 . Propulsion 6 | . 1 2 . . . 1 2 . Utility 8 | . . . . 1 1 1 4 1 Weapon 14 | . 1 2 5 . . 2 3 1 Highest Loss Streak 5 | . 1 2 1 2 1 1 5 1 To Critical Strikes 1 | . . . . . . . 1 . Average Slot Usage (%) 90 | . 98 98 98 99 99 86 45 58 Engine 11 | . 13 13 11 10 14 13 2 . Core 1 | . . . . . 3 1 . . Reactor 1 | . . . . . . . 6 15 Treads 5 | . 23 . . . 10 . 4 11 Leg 7 | . . 4 . . 6 22 3 . Wheel 8 | . 3 22 22 21 . . . . Device 8 | . . 3 11 11 7 12 10 . Storage 8 | . 14 10 11 11 9 7 1 . Processor 11 | . 13 14 11 11 12 11 5 4 Protection 7 | . . . 10 10 15 1 7 14 Energy Gun 3 | . 3 14 13 1 . . . 3 Energy Cannon 6 | . . . . 4 15 11 . . Ballistic Gun 6 | . 23 7 6 11 2 . . . Naked Turns 16 | . . . . . . . 16 . Heaviest Build 87 | 12 22 22 28 36 47 57 79 87 Greatest Support 90 | 40 40 20 24 24 44 60 70 90 Greatest Overweight (x) 5 | . 1 2 2 2 1 1 5 1 Average Overweight (x) . | . . . . . . . . . Largest Inventory Capacity 10 | 8 10 10 10 10 10 10 10 5 Average Capacity 9 | 7 9 8 10 10 10 10 5 5 Most Carried 10 | 1 5 8 9 10 10 10 9 5 Average Carried 7 | . 4 6 6 8 9 9 3 4 Final Capacity 10 | 8 10 5 10 10 10 10 5 5 Final Carried 10 | 1 5 5 9 9 10 9 4 5 Class Distribution -------------------- 56% | Mutant 23% | Scavenger-Mutant 17% | Skirmisher Dominant Class ---------------- Mutant | -10/Materials Mutant | -10/Mines Mutant | -9/Materials Mutant | -9/Storage Mutant | -8/Materials Skirmisher | -7/Factory Scavenger-Mutant | -7/Waste Scavenger-Mutant | -7/Factory Resources | -11 -10 -10 -9 -9 -8 -7 -7 -7 ----------- Run | Jun Mat Min Mat Sto Mat Fac Was Fac Matter Collected 4114 | 196 466 188 334 748 732 754 521 175 Remotely . | . . . . . . . . . Salvage Created 12394 | . 697 478 2212 1392 2467 2942 1508 698 Parts 576 | . 37 24 122 57 119 172 19 26 Haulers Intercepted 21 | . . . 5 5 6 5 . . Recyclers Shooed 5 | . . 1 1 2 . 1 . . Parts Field Recycled . | . . . . . . . . . Retrieved Matter . | . . . . . . . . . Parts Self-Destructed . | . . . . . . . . . Prevented . | . . . . . . . . . Kills | -11 -10 -10 -9 -9 -8 -7 -7 -7 ------- Run | Jun Mat Min Mat Sto Mat Fac Was Fac Combat Hostiles Destroyed 185 | . 14 11 34 18 36 54 6 12 Melee 18 | . . . . 3 . 2 2 11 Guns 67 | . 14 11 27 8 6 . . 1 Cannons 74 | . . . 1 1 25 43 4 . AOE 11 | . . . 3 . . 8 . . Classes Destroyed 18 | . 6 . 5 1 1 4 1 . Worker 7 | . 2 . 2 1 1 . . 1 Builder 7 | . 1 . 2 . . 4 . . Hauler 21 | . . . 5 5 6 5 . . Recycler 17 | . 2 1 3 6 1 2 . 2 Mechanic 1 | . . . . . . 1 . . Operator 7 | . . . 4 . 2 1 . . Watcher 16 | . 3 . 4 2 5 2 . . Swarmer 25 | . 6 3 6 . . 7 . 3 Grunt 89 | . 8 8 17 11 22 21 . 2 Brawler 6 | . . . 1 1 3 . . 1 Duelist 4 | . . . 1 2 1 . . . Protector 2 | . . . . 2 . . . . Sentry 29 | . . . 9 2 9 8 . 1 Specialist 3 | . . . . . . 3 . . Hunter 4 | . . . . . 1 2 . 1 Programmer 14 | . . . . . . 10 . 4 Heavy 3 | . . . . . . 3 . . Compactor 6 | . . . . . . . 6 . Best Kill Streak 11 | . 4 3 8 6 5 11 2 3 Combat Bots Only 8 | . 4 3 4 5 5 8 2 3 Max Kills in Single Turn 4 | . 2 2 2 1 2 4 1 1 Gunslinging 1 | . 1 1 1 . . . . . Exploded 3 | . . . 1 . . 3 . . Melee 1 | . . . . 1 . 1 1 1 Uniques/NPCs Destroyed . | . . . . . . . . . Combat | -11 -10 -10 -9 -9 -8 -7 -7 -7 -------- Run | Jun Mat Min Mat Sto Mat Fac Was Fac Damage Taken 9202 | . 541 600 911 932 1695 1754 1409 1360 Core 1491 | . 90 151 191 160 197 225 400 77 Absorbed by Shields 510 | . . . . . . 510 . . Redirected to Shielding 294 | . . . . 5 39 85 87 78 Regen/Repaired (Parts) 963 | . 99 . 251 197 402 14 . . Core Remaining (%) 44 | 100 . 3 . 12 64 . . . Volleys Fired 693 | . 53 46 108 154 145 131 33 23 Largest 2 | . 2 2 2 2 2 2 1 1 Hottest 180 | . 70 165 100 136 180 180 60 55 Shots Fired 1209 | . 103 84 194 241 288 242 34 23 Gun 641 | . 103 82 192 197 44 . . 23 Cannon 533 | . . . . 21 244 234 34 . Launcher 8 | . . . . . . 8 . . Special 27 | . . 2 2 23 . . . . Kinetic 362 | . 84 37 43 101 44 19 34 . Thermal 661 | . 19 47 2 140 238 215 . . Explosive 8 | . . . . . . 8 . . Electromagnetic 178 | . . . 149 . 6 . . 23 Robot Hit Streak 34 | . 16 14 30 34 34 26 21 28 Robot Miss Streak 5 | . 5 3 4 2 3 3 1 1 Penetration Max . | . . . . . . . . . Secondary Targets 12 | . 3 1 4 2 2 . . . Max Gunslinging Chain 1 | . 1 1 1 1 1 . . . Shots Hit Robots 908 | . 73 63 145 118 227 192 32 58 Core Hits 400 | . 31 26 68 33 81 102 39 20 Critical Kills 4 | . . . . 2 2 . . . Critical Parts Destroyed 5 | . . . . 5 . . . . Critical Strikes 26 | . 2 3 1 8 3 2 1 6 Burn 5 | . 2 3 . . . . . . Meltdown 3 | . . . . 1 2 . . . Destroy 1 | . . . . 1 . . . . Blast 3 | . . . . . . 2 1 . Corrupt 2 | . . . 1 . 1 . . . Smash 6 | . . . . 6 . . . . Sever 6 | . . . . . . . . 6 Melee Attacks 187 | . . . . 130 2 9 1 45 Impact 123 | . . . . 122 . . 1 . Slashing 64 | . . . . 8 2 9 . 45 Piercing . | . . . . . . . . . Sneak Attacks 12 | . . . . 4 . 3 . 5 Combat Hostiles 1 | . . . . . . 1 . . Follow-up Attacks . | . . . . . . . . . Damage Inflicted 23451 | . 955 744 2851 2547 5000 7533 1829 1992 Guns 6110 | . 955 744 2508 1129 588 . . 186 Cannons 11961 | . . . . 101 4342 5904 1614 . Explosions 1574 | . . . 294 . . 1223 . 57 Melee 3565 | . . . . 1287 68 401 60 1749 Ramming 191 | . . . 1 28 2 5 155 . Kinetic 5710 | . 804 265 569 1129 588 741 1614 . Thermal 10484 | . 151 479 342 103 4189 5163 . 57 Explosive 1223 | . . . . . . 1223 . . Electromagnetic 2278 | . . . 1939 . 153 . . 186 Impact 1347 | . . . . 1287 . . 60 . Slashing 2218 | . . . . . 68 401 . 1749 Piercing . | . . . . . . . . . Highest Corruption 32 | . . . . 2 6 6 32 32 Average Corruption 8 | . . . . 2 2 3 24 32 Corruption Purged . | . . . . . . . . . Corruption Blocked . | . . . . . . . . . Effects 207 | . . . . 17 28 65 29 68 Message Errors 44 | . . . . 2 6 13 10 13 Matter Fused 49 | . . . . 5 7 18 6 13 Heat Flow Errors 21 | . . . . 1 3 6 3 8 Energy Discharges 34 | . . . . 5 6 9 4 10 Parts Rejected 3 | . . . . . . 1 . 2 Parts Fused 5 | . . . . . 2 . . 3 Data Loss (minor) 20 | . . . . 2 1 8 2 7 Data Loss (major) 10 | . . . . 2 2 1 1 4 Misfires 13 | . . . . . 1 7 2 3 Alerts 2 | . . . . . . . . 2 Weapon Failures 6 | . . . . . . 2 1 3 Overload Shots 34 | . . . . . 10 24 . . Effects 5 | . . . . . . 5 . . Energy Bleed 2 | . . . . . . 2 . . Heat Surge 1 | . . . . . . 1 . . Short Circuit 2 | . . . . . . 2 . . Overflow Damage 815 | . . . 9 168 70 337 . 231 Projectiles 271 | . . . . . 44 227 . . Explosions 59 | . . . 9 . . 50 . . Melee 485 | . . . . 168 26 60 . 231 Knockbacks 7 | . . . . 4 1 2 . . Impact 4 | . . . . 3 1 . . . Kinetic 2 | . . . . . . 2 . . Secondary 1 | . . . . 1 . . . . Self-Inflicted Damage 268 | . . . . 13 . 107 18 130 Shots 4 | . . . . . . 2 . 2 Rammed 57 | . . . 1 2 1 . 53 . Targets Rammed 58 | . . . 1 2 1 1 53 . Kicked 1 | . . . . . . 1 . . Crushed . | . . . . . . . . . Highest Temperature 471 | . 27 342 241 257 357 471 228 389 Average Temperature 101 | . 9 73 69 93 129 95 122 119 Received Heat Transfer 3296 | . 258 282 432 423 1170 353 . 378 Effects 21 | . . 3 . 3 7 2 1 5 Shutdowns 3 | . . . . . 1 . . 2 Energy Bleed 4 | . . 2 . . 1 . 1 . Interference 13 | . . . . 3 5 2 . 3 Damage (minor) 1 | . . 1 . . . . . . Siege Activations . | . . . . . . . . . Robots Corrupted 4 | . . . 3 . 1 . . . Combat Hostiles 4 | . . . 3 . 1 . . . Parts Fried 17 | . . . 8 8 1 . . . Impact Corruptions 14 | . . . . 14 . . . . Robots Melted 6 | . . . . 1 4 1 . . Combat Hostiles 6 | . . . . 1 4 1 . . Parts Melted 28 | . 1 5 . 1 11 10 . . Heat Transferred 16188 | . 592 1517 550 210 7121 6148 . 50 Parts Sabotaged . | . . . . . . . . . Parts Stolen . | . . . . . . . . . Parts Stripped . | . . . . . . . . . Power Chain Reactions 8 | . . . 7 . . . . 1 Missiles Intercepted . | . . . . . . . . . Alert | -11 -10 -10 -9 -9 -8 -7 -7 -7 ------- Run | Jun Mat Min Mat Sto Mat Fac Was Fac Peak Influence 440 | . 167 226 425 279 440 392 56 198 Initial 55 | . . 1 . 13 . . 55 . Average 102 | . 40 57 142 65 195 108 16 62 Maximum Alert Level 2 | . . 1 2 1 2 1 . . Low Security (%) 82 | 100 100 92 75 92 49 85 100 100 Level 1 16 | . . 7 23 7 49 14 . . Level 2 . | . . . 1 . . . . . Level 3 . | . . . . . . . . . Level 4 . | . . . . . . . . . Level 5 . | . . . . . . . . . High Security . | . . . . . . . . . Max Security . | . . . . . . . . . Squads Dispatched 43 | . 1 . 4 5 4 24 . 5 Investigation 13 | . 1 . 2 2 4 4 . . Extermination 12 | . . . . . . 8 . 4 Reinforcement 11 | . . . 2 . . 8 . 1 Assault 2 | . . . . 2 . . . . Garrison 5 | . . . . 1 . 4 . . Intercept . | . . . . . . . . . Searches Triggered . | . . . . . . . . . Construction Impeded 1 | . . . . . . 1 . . Haulers Reinforced 1 | . . . . . . 1 . . Active Scanning Responses 2 | . . . . . . 2 . . Cargo Convoy Interrupts 1 | . . . . . . 1 . . Stealth | -11 -10 -10 -9 -9 -8 -7 -7 -7 --------- Run | Jun Mat Min Mat Sto Mat Fac Was Fac Distress Signals 16 | . 2 . 4 2 4 3 . 1 Communications Jammed . | . . . . . . . . . Distress Signals . | . . . . . . . . . Times Spotted 275 | . 23 14 51 30 61 67 6 23 Peak Tracking Total 8 | . 4 4 5 8 5 7 2 6 Tactical Retreats 24 | . 1 1 4 2 10 4 . 2 Traps | -11 -10 -10 -9 -9 -8 -7 -7 -7 ------- Run | Jun Mat Min Mat Sto Mat Fac Was Fac Traps Triggered 18 | . 4 . 1 . 7 4 . 2 Indirectly . | . . . . . . . . . Trap Hack Attempts . | . . . . . . . . . Triggered . | . . . . . . . . . Disarmed . | . . . . . . . . . Reprogrammed . | . . . . . . . . . Reused . | . . . . . . . . . Traps Extracted . | . . . . . . . . . Installed . | . . . . . . . . . Triggered 1 | . . . 1 . . . . . Machines | -11 -10 -10 -9 -9 -8 -7 -7 -7 ---------- Run | Jun Mat Min Mat Sto Mat Fac Was Fac Machines Disabled 26 | . . . 4 4 3 11 . 4 Max in Single Turn 4 | . . . 1 1 1 2 . 4 Garrison Access 1 | . . . . 1 . . . . Machines Repaired . | . . . . . . . . . Machines Sabotaged . | . . . . . . . . . Overloaded Fab Kills . | . . . . . . . . . Hacking | -11 -10 -10 -9 -9 -8 -7 -7 -7 --------- Run | Jun Mat Min Mat Sto Mat Fac Was Fac Machines Accessed 59 | . 7 . 10 12 12 16 . 2 Terminals 46 | . 6 . 8 10 8 13 . 1 Fabricators 1 | . . . . . . 1 . . Repair Stations 8 | . 1 . 2 1 2 2 . . Recycling Units . | . . . . . . . . . Scanalyzers 2 | . . . . . 2 . . . Garrison Access 2 | . . . . 1 . . . 1 Total Hacks 161 | . 24 . 34 27 41 32 . 3 Successful 87 | . 13 . 21 17 25 10 . 1 Failed 74 | . 11 . 13 10 16 22 . 2 Catastrophic 18 | . 1 . 1 3 5 7 . 1 Database Lockouts . | . . . . . . . . . Manual 45 | . 7 . 4 8 12 14 . . Terminals 115 | . 20 . 25 19 26 23 . 2 Fabricators 5 | . . . . . . 5 . . Repair Stations 34 | . 4 . 9 7 10 4 . . Recycling Units . | . . . . . . . . . Scanalyzers 5 | . . . . . 5 . . . Garrison Access 2 | . . . . 1 . . . 1 Terminal Hacks 55 | . 11 . 15 12 12 4 . 1 Record 6 | . 2 . . 1 1 2 . . Part Schematic 5 | . . . . 3 2 . . . Robot Analysis 3 | . . . . 1 1 1 . . Prototype ID Bank 5 | . 1 . 1 1 1 . . 1 Open Door 3 | . . . . 3 . . . . Branch Access Points 2 | . 1 . . 1 . . . . Emergency Access Points 2 | . 1 . . . 1 . . . Terminal Index 1 | . . . . . 1 . . . Alert Level 9 | . 1 . 5 1 2 . . . Unreport Threat 5 | . . . 3 . 1 1 . . Locate Traps 4 | . 2 . 1 1 . . . . Dispatch Records 2 | . 1 . 1 . . . . . Investigation Status 2 | . 1 . 1 . . . . . Recall Investigation 1 | . . . . . 1 . . . Hauler Manifests 1 | . . . 1 . . . . . Registered Components 2 | . . . 1 . 1 . . . Registered Prototypes 1 | . . . 1 . . . . . Zone Layout 1 | . 1 . . . . . . . Fabricator Hacks 3 | . . . . . . 3 . . Network Status 1 | . . . . . . 1 . . Load Schematic 1 | . . . . . . 1 . . Build 1 | . . . . . . 1 . . Repair Station Hacks 22 | . 2 . 5 4 9 2 . . Scan Component 12 | . 1 . 3 2 5 1 . . Repair 10 | . 1 . 2 2 4 1 . . Recycling Unit Hacks . | . . . . . . . . . Scanalyzer 4 | . . . . . 4 . . . Insert Component 2 | . . . . . 2 . . . Analyze 2 | . . . . . 2 . . . Garrison Access Hacks 1 | . . . . 1 . . . . Seal Access 1 | . . . . 1 . . . . Unauthorized Hacks 2 | . . . 1 . . 1 . . Terminals 1 | . . . 1 . . . . . Assimilate 1 | . . . 1 . . . . . Fabricators 1 | . . . . . . 1 . . Fabnet 1 | . . . . . . 1 . . Repair Stations . | . . . . . . . . . Recycling Units . | . . . . . . . . . Scanalyzers . | . . . . . . . . . Garrison Access . | . . . . . . . . . Data Cores Recovered 3 | . . . 1 . 2 . . . Used 2 | . . . 1 . 1 . . . Hacking Detections 56 | . 7 . 10 9 12 16 . 2 Full Trace Events 14 | . 4 . 3 3 2 2 . . Feedback Events . | . . . . . . . . . Feedback Blocked . | . . . . . . . . . Robot Schematics Acquired . | . . . . . . . . . Robots Built . | . . . . . . . . . Authchips . | . . . . . . . . . Time . | . . . . . . . . . Total Robot Build Rating . | . . . . . . . . . Part Schematics Acquired 7 | . . . . 3 4 . . . Parts Built 1 | . . . . . . 1 . . Authchips . | . . . . . . . . . Time 73 | . . . . . . 73 . . Total Part Build Rating 3 | . . . . . . 3 . . Parts Repaired 10 | . 1 . 2 2 4 1 . . Time 336 | . 26 . 70 32 178 30 . . Parts Recycled . | . . . . . . . . . Recycled Matter . | . . . . . . . . . Retrieved Matter . | . . . . . . . . . Retrieved Components . | . . . . . . . . . Parts Scanalyzed 2 | . . . . . 2 . . . Part Schematics Acquired 2 | . . . . . 2 . . . Parts Damaged . | . . . . . . . . . Bothacking | -11 -10 -10 -9 -9 -8 -7 -7 -7 ------------ Run | Jun Mat Min Mat Sto Mat Fac Was Fac Used RIF Installer . | . . . . . . . . . Robots Hacked . | . . . . . . . . . Non-combat . | . . . . . . . . . Combat . | . . . . . . . . . Robot Hacks Applied . | . . . . . . . . . Relay Couplers Released . | . . . . . . . . . Fabnet Peak Effective % . | . . . . . . . . . Robots Rewired 1 | . . . . . . . . 1 Allies Hacked . | . . . . . . . . . Hacks Repelled . | . . . . . . . . . Allies | -11 -10 -10 -9 -9 -8 -7 -7 -7 -------- Run | Jun Mat Min Mat Sto Mat Fac Was Fac Total Allies 13 | . . . . 12 . . . 1 Largest Group 10 | . . . . 10 1 . . 1 Highest-Rated Group 88 | . . . . 88 26 . . 16 Highest-Rated Ally 31 | . . . . 31 26 . . 16 Total Orders 4 | . . . . 4 . . . . ROAM 4 | . . . . 4 . . . . Ally Attacks 66 | . . . . 65 . . . 1 Total Damage 671 | . . . . 649 . . . 22 Kills 10 | . . . . 10 . . . . Allies Corrupted 2 | . . . . 2 . . . . Allies Melted . | . . . . . . . . . Intel | -11 -10 -10 -9 -9 -8 -7 -7 -7 ------- Run | Jun Mat Min Mat Sto Mat Fac Was Fac Robot Analysis Total 3 | . . . . 1 1 1 . . Derelict Logs Recovered 2 | . . 2 . . . . . . Drone Launches 30 | . . . . 30 . . . . Drone Recoveries 14 | . . . . 14 . . . . Exploration | -11 -10 -10 -9 -9 -8 -7 -7 -7 ------------- Run | Jun Mat Min Mat Sto Mat Fac Was Fac Turns Passed 17824 | 97 1850 1117 2219 3013 3059 4501 605 1363 Spaces Moved 9743 | 56 947 902 1677 1372 1362 2641 205 581 Core 30 | 4 . . . . . . 26 . Treads 2375 | 52 872 . . . 720 . 150 581 Legs 3270 | . . 76 . . 524 2641 29 . Wheels 4068 | . 75 826 1677 1372 118 . . . Hover . | . . . . . . . . . Flight . | . . . . . . . . . Fastest Speed 50 | 50 95 80 90 90 105 130 50 160 Average Speed 133 | 152 166 99 101 104 162 136 192 188 Slowest Speed 300 | 160 240 260 120 120 225 200 300 240 Overloaded Moves . | . . . . . . . . . Propulsion Burnouts . | . . . . . . . . . Robots Hopped . | . . . . . . . . . Cave-ins Triggered . | . . . . . . . . . Exploration Rate (%) 72 | 4 96 98 97 95 97 59 89 14 Regions Visited 8 Branch Regions 2 Pre-discovered Areas 1 | . . 1 . . . . . . Known Exits Taken 5 | . 1 1 1 1 1 . . . Unknown Exits Taken 1 | 1 . . . . . . . . Scrap Searched 2 | . . 2 . . . . . . Spaces Dug 2 | . . 1 . 1 . . . . Terrain Destroyed 192 | . . 1 23 1 6 128 4 29 Melee 1 | . . . . 1 . . . . Projectile 28 | . . 1 . . 6 17 4 . AOE 163 | . . . 23 . . 111 . 29 Terrain Rammed . | . . . . . . . . . Walls Destroyed . | . . . . . . . . . Machines Disabled . | . . . . . . . . . Actions | -11 -10 -10 -9 -9 -8 -7 -7 -7 --------- Run | Jun Mat Min Mat Sto Mat Fac Was Fac Total 12957 | 65 1112 1039 1993 2464 1934 3271 335 744 Wait 1844 | 1 87 69 164 714 308 392 24 85 Move 9736 | 55 946 901 1676 1371 1361 2641 204 581 Hop . | . . . . . . . . . Pick Up 65 | 1 6 3 10 14 16 13 2 . Fast Attach 135 | 7 14 7 15 14 33 27 11 7 Attach 27 | . . 4 5 5 2 6 5 . Detach 9 | . . 2 2 2 2 . . 1 Swap 60 | . 1 3 2 25 15 14 . . Drop 131 | 1 5 4 10 24 48 37 2 . Fire 693 | . 53 46 108 154 145 131 33 23 Melee 187 | . . . . 130 2 9 1 45 Ram 15 | . . . 1 2 . . 12 . Kick 1 | . . . . . . 1 . . Crush 42 | . . . . . 1 . 41 . Escape Stasis . | . . . . . . . . . Rewire 5 | . . . . 2 1 . . 2 Trap . | . . . . . . . . . Miscellaneous 7 | . . . . 7 . . . . Route ------- -11/Junkyard -10/Materials (discovered 4 exits: *Mat x2 / *Min x2) -10/Mines (discovered 2 exits: *Mat x2) -9/Materials (discovered 6 exits: *Mat x3 / [*Min] / *Sto x2) -9/Storage (discovered 2 exits: *Mat / Rec) -8/Materials (discovered 3 exits: *Fac x3) -7/Factory (discovered 4 exits: *Fac x2 / *Low x2) -7/Waste -7/Factory (discovered 2 exits: *Fac / *Low) History --------- Turn | Location | Event 67 | -11/Junkyard | Discovered new exit (range 13) 98 | -11/Junkyard | Entered Materials 304 | -10/Materials | Build established: Mutant 331 | -10/Materials | Discovered new exit (range 6) 417 | -10/Materials | Identified exit to Mines 452 | -10/Materials | Discovered new exit (range 7) 460 | -10/Materials | Identified exit to Materials 676 | -10/Materials | Discovered exit to Materials (range 3) 1372 | -10/Materials | Repaired Lgt. Treads 1948 | -10/Materials | Entered Mines 1955 | -10/Mines | Received a Rocket Launcher from a helpful Derelict 1961 | -10/Mines | Learned 2 Materials zone layouts 2009 | -10/Mines | Core integrity fell below 50% 2065 | -10/Mines | Discovered exit to Materials (range 14) 2146 | -10/Mines | Assembled infested the area 2151 | -10/Mines | Assisted by a Guerilla fighting off Assembled 2327 | -10/Mines | Discovered exit to Materials (range 11) 2562 | -10/Mines | Build established: Scavenger-Mutant 2586 | -10/Mines | Core integrity fell below 20% 2803 | -10/Mines | Found a damaged Exp. Sensor Array with a note attached 2807 | -10/Mines | Found Prototype Device 2807 | -10/Mines | Identified Exp. Sensor Array 2885 | -10/Mines | Build established: Mutant 3065 | -10/Mines | Entered Materials 3065 | -9/Materials | Evolved 2 slots: Utility x2 3518 | -9/Materials | Discovered new exit (range 12) 3722 | -9/Materials | Discovered new exit (range 5) 3725 | -9/Materials | Identified exit to Storage 3743 | -9/Materials | Discovered exit to Storage (range 9) 4102 | -9/Materials | Discovered new exit (range 11) 4116 | -9/Materials | Identified exit to Materials 4286 | -9/Materials | Discovered exit to Materials (range 14) 4896 | -9/Materials | Discovered new exit (range 10) 5192 | -9/Materials | Repaired Arm. Wheel 5232 | -9/Materials | Repaired Imp. Light Armor Plating 5284 | -9/Materials | Entered Storage 5786 | -9/Storage | Garrison activated, responded to threat 5868 | -9/Storage | Core integrity fell below 50% 5938 | -9/Storage | Identified exit to Recycling 5997 | -9/Storage | Assisted by bots powering up and referring to "LRC-V3" 7075 | -9/Storage | Met a pair of Derelict thieves 7303 | -9/Storage | Core integrity fell below 20% 7527 | -9/Storage | Discovered exit to Materials (range 15) 7656 | -9/Storage | Found Prototype Launcher 7656 | -9/Storage | Identified Scatter Rocket Array 7871 | -9/Storage | Repaired Arm. Wheel 7889 | -9/Storage | Repaired Hrd. Light Armor Plating 8297 | -9/Storage | Entered Materials 8297 | -8/Materials | Accompanied by 1 ally 8297 | -8/Materials | Evolved 2 slots: Power x1, Utility x1 9054 | -8/Materials | Build established: Scavenger-Mutant 9192 | -8/Materials | Repaired Cld. Ion Engine 9234 | -8/Materials | Repaired Imp. Light Armor Plating 9287 | -8/Materials | Repaired Adv. Beam Cannon 9397 | -8/Materials | Repaired Adv. Treads 9660 | -8/Materials | Discovered new exit (range 16) 10362 | -8/Materials | Build established: Mutant 10508 | -8/Materials | Discovered new exit (range 13) 11050 | -8/Materials | Discovered new exit (range 4) 11056 | -8/Materials | Identified exit to Factory 11356 | -8/Materials | Entered Factory 11356 | -7/Factory | Evolved 2 slots: Propulsion x1, Utility x1 11816 | -7/Factory | Discovered new exit (range 16) 11841 | -7/Factory | Identified exit to Factory 12072 | -7/Factory | Cargo convoy interrupted 12113 | -7/Factory | Build established: Scavenger-Mutant 12165 | -7/Factory | Garrison activated, responded to threat 12314 | -7/Factory | Discovered new exit (range 17) 12335 | -7/Factory | Identified exit to Lower Caves 12655 | -7/Factory | Discovered exit to Lower Caves (range 12) 12736 | -7/Factory | Found Prototype Device 12736 | -7/Factory | Identified Active Sensor Suite 13150 | -7/Factory | Destroyed 8 combat bots 13429 | -7/Factory | Build established: Skirmisher 13998 | -7/Factory | Repaired Broken Imp. Titanium Leg 14772 | -7/Factory | Garrison activated, responded to threat 14923 | -7/Factory | Fabricated Hvy. Assault Cannon (x1) 15724 | -7/Factory | Discovered exit to Factory (range 14) 15857 | -7/Factory | Sucked down chute 15857 | -7/Factory | Entered Waste 15865 | -7/Waste | Spotted C-40 Crusher 15872 | -7/Waste | EMP discharged 15872 | -7/Waste | System corruption reached 10% 15897 | -7/Waste | Crushed by Compactor (1 part destroyed, 1 dropped) 15900 | -7/Waste | Destroyed C-40 Crusher 15911 | -7/Waste | Spotted C-40 Crusher 15918 | -7/Waste | Destroyed C-40 Crusher 15959 | -7/Waste | Crushed by Compactor (0 parts destroyed, 1 dropped) 15965 | -7/Waste | Crushed by Compactor (1 part destroyed) 15965 | -7/Waste | Crushed by Compactor (0 parts destroyed, 1 dropped) 15968 | -7/Waste | Crushed by Compactor (1 part destroyed, 1 dropped) 15969 | -7/Waste | Core integrity fell below 50% 15970 | -7/Waste | Destroyed C-40 Crusher 15972 | -7/Waste | EMP discharged 15977 | -7/Waste | Destroyed C-40 Crusher 16065 | -7/Waste | Spotted C-40 Crusher 16072 | -7/Waste | EMP discharged 16076 | -7/Waste | Crushed by Compactor (0 parts destroyed, 1 dropped) 16085 | -7/Waste | Crushed by Compactor (1 part destroyed, 2 dropped) 16088 | -7/Waste | Crushed by Compactor (1 part destroyed) 16098 | -7/Waste | Core integrity fell below 20% 16100 | -7/Waste | Destroyed C-40 Crusher 16119 | -7/Waste | Lost 4 parts (1u3w) 16166 | -7/Waste | Spotted C-40 Crusher 16172 | -7/Waste | EMP discharged 16263 | -7/Waste | Crushed by Compactor (1 part destroyed) 16266 | -7/Waste | Crushed by Compactor (1 part destroyed) 16272 | -7/Waste | EMP discharged 16272 | -7/Waste | System corruption reached 30% 16287 | -7/Waste | Crushed by Compactor (1 part destroyed) 16290 | -7/Waste | Crushed by Compactor (1 part destroyed) 16326 | -7/Waste | Destroyed C-40 Crusher 16330 | -7/Waste | Found Damper Plating 16348 | -7/Waste | Lost 5 parts (2p3u) 16372 | -7/Waste | EMP discharged 16433 | -7/Waste | Discovered new exit (range 12) 16462 | -7/Waste | Entered Factory 16622 | -7/Factory | Build established: Scavenger-Mutant 17086 | -7/Factory | Discovered exit to Lower Caves (range 9) 17521 | -7/Factory | Discovered exit to Factory (range 5) 17825 | -7/Factory | Destroyed by Y-54 Guardian with Flak Gun Last Messages --------------- P-60 Hacker destroyed. Slug penetrates Wall. Critical hit (Burn: +37). System corrupted: Energy discharge (-113). Arc Projector destroyed. H-55 Commando destroyed. K-01 Serf collects debris. ILM/PNI2RNZIP5BDICR8DGAIL Sneak attack on R-06 Scavenger. Destroyed Lgt. Ion Engine. R-06 Scavenger destroyed. K-01 Serf collects debris. R-06 Scavenger collects Shock Rifle. R-06 Scavenger collects Remote Datajack. System corrupted: Energy discharge (-113). P-60 Hacker destroyed. Imp. Propulsion Shielding destroyed. K-01 Serf collects debris. Sneak attack on K-01 Serf. Destroyed Wheel. Map ----- +----------------------------------------------------+ | ######## ############### ### """"""" # # | | # ## # #??????# + """"""" # # | | ## # "" #??????# ### """"""" # # | | < # "" #??????# #?# """"""" # | | ## # """ #????### ### # | | # ## # """ ###### # # | | ######## # """ # ############## | | ???????# # + T #????????????# | | ???????# # "" # #????????????# | | ???????# # "" # # #????????????# | | ???????# # "" # ###+####???????????# | | ???????# # "" + + #???????????# | | ???????# # """ ###### ! """#???????????# | | ???????#### # #????# """#???????????# | | ??????????# # #????# """#???????????# | | ??????????# ########????# #???????????####### | | ??????????# #???????????# #?????????????????? | | ??????????# #???????????########?????????????????? | | ????????###=###???????#######????????????????????? | | ????????# !%= #???????# #????????????????????? | | ????????# ######### #????????????????????? | | ????????# % !!==^^Y #????????????????????? | | ????????# #####%###g #????????????????????? | | ????????# #???#=#?# #????????????????????? | | ????????#######???#%#?##!= ###############???????? | | ?????????##########/####k@%#[ #???????? | | ?????????# [ += +=% #???????? | | ########?# """" # #= #???????? | | #?# """" # #* #???????? | | #?# """" # # #???????? | | #?# % """" # # #???????? | | #?# # % # #???????? | | //#?# """" """" # # #???????? | | //#?# """" """" # # #???????? | | #?# """" """" # # #???????? | | #?# """" """" # # #???????? | | ### # ##############????????? | | +####### ############### #?##############??????? | | #???# # # ##????# #?# ???????? | | #??## #????# #?# ???????? | | #?## #????# #?# ????????? | | #?# #??### ### """ #??????? | | ### #??# # """ #??????? | | % # #??# # [= """ #??????? | | %# #### # = #??????? | | % + + + """ #??????? | | # #### # """ #??????? | | # #??# # """ #??????? | | #+##+# #??# # #??????? | | # #??### ### #??????? | +----------------------------------------------------+ Best States ------------- Heat Dissipation 61 Energy Generation 37 Energy Capacity 550 Matter Stores 300 Matter Capacity 300 Sight Range 20 Robot Scan Range 20 Terrain Scan Density 10 EM Shielding 2 Armor Coverage 1600 Resistance: KI 20 Resistance: TH 20 Resistance: EX 20 Resistance: EM 100 Resistance: I 20 Resistance: S 20 Resistance: P 20 Core Shielding 20 Propulsion Shielding 66 Weapon Cycling 15 Evasion (%) 55 Targeting Accuracy 8 Target Analysis 5 Armor Integrity Analysis 30 Recoil Reduction 3 Energy Filtering 30 Offensive Hacking 10 Authchip Count 1 Item Schematics ----------------- Assault Cannon | -9/Storage | Hacked Imp. Light Armor Plating | -9/Storage | Hacked Cryofiber Web | -9/Storage | Hacked Scatter Rocket Array | -8/Materials | Scanalyzed Imp. EM Pulse Cannon | -8/Materials | Scanalyzed Hvy. Assault Cannon | -8/Materials | Hacked Surge Thruster | -8/Materials | Hacked Robot Schematics ------------------ None Fabricated ------------ Hvy. Assault Cannon | x1 | -7/Factory Alien Tech Used ----------------- None Achievements -------------- Fist Fight Overkill Release The Drones! Superinsulated Treasure Hunter Challenges ------------ None Game ------ Seed ChromaticBottomlessBarrier Manual? 0 Play Time 02:33:49 Cumulative 41.1 hours Start 2023.09.15 @ 17:59:06 End 2023.09.16 @ 11:47:46 Sessions 4 Manual Loads 0 Difficulty Adventurer Special Mode None Game No. 12 Rogue 0 Adventurer 12 Explorer 0 Win Type - Total 0 Types 0/0/0/0/0/0/0/0/0 Lore% 27 Gallery% 33 Achievement% 31 Wizard Run 0 Options --------- ASCII 0 Keyboard 0 Movement Numpad Keybinds 0 Fullscreen 1 Font 24/Smallcaps Map View 76x50 Tactical HUD 0 Map Filters NONE Filters NONE Steam 1 RUN: ed9d5b26-468b-4075-af7f-26dcec30d200